bitfinex/quotes_BTCUSD_20230120
["timestamp","ask_amount","ask_price","bid_price","bid_amount"]
[1674251880369,0.00097787,22341.0,22337.0,0.15]
[1674251880619,0.2220003,22341.0,22337.0,0.3]
[1674251880908,0.03697787,22341.0,22336.0,0.518599]
[1674251881169,0.60815578,22340.0,22336.0,0.518599]
[1674251881432,0.60815578,22340.0,22336.0,0.0709]
[1674251881898,0.45913335,22340.0,22336.0,0.2209]
[1674251882431,0.3749805,22341.0,22337.0,0.76612945]
[1674251882692,0.009,22340.0,22337.0,1.21381045]
[1674251883192,0.009,22340.0,22337.0,0.897681]
[1674251883697,0.009,22340.0,22338.0,0.41398753]
[1674251883946,0.009,22340.0,22339.0,0.3]
[1674251884203,0.34287852,22342.0,22339.0,0.3]
[1674251884448,0.01,22341.0,22339.0,0.3]
[1674251884919,0.016,22340.0,22339.0,0.3]
[1674251885182,0.34287852,22342.0,22339.0,0.3]
[1674251885437,0.016,22341.0,22339.0,0.747647]
[1674251885695,0.34349544,22344.0,22340.0,0.0684]
[1674251885984,0.37949544,22344.0,22341.0,0.963606]
[1674251886243,0.036,22344.0,22342.0,0.45]
[1674251886505,0.036,22344.0,22343.0,0.447567]
[1674251886760,0.036,22344.0,22343.0,0.3]
[1674251887068,0.43215516,22344.0,22342.0,0.69711216]
[1674251887318,0.43215516,22344.0,22339.0,0.815839]
[1674251887578,0.58795806,22343.0,22340.0,0.64600978]
[1674251887846,0.58795806,22343.0,22339.0,0.448639]
[1674251887847,0.02,22341.0,22339.0,0.448639]
[1674251888112,0.20502243,22341.0,22338.0,0.447648]
[1674251888398,0.20502243,22341.0,22338.0,0.63633485]
[1674251888655,0.15,22342.0,22338.0,0.63633485]
[1674251888914,0.036,22341.0,22338.0,0.447648]
[1674251889178,0.3793047,22341.0,22338.0,0.66618843]
[1674251889427,0.3433047,22341.0,22338.0,0.66618843]
[1674251889782,0.3793047,22341.0,22339.0,0.47971027]
[1674251890047,0.036,22341.0,22339.0,0.47971027]
[1674251890303,0.03546158,22341.0,22339.0,0.47971027]
[1674251890805,0.04346158,22341.0,22339.0,0.47971027]
[1674251891082,0.03546158,22341.0,22339.0,0.47971027]
[1674251891341,0.38562129,22341.0,22339.0,0.18571027]
[1674251891591,0.38562129,22341.0,22339.0,0.48571027]
[1674251891843,0.38562129,22341.0,22339.0,0.18571027]
[1674251892091,0.04446158,22341.0,22339.0,0.48571027]
[1674251892404,0.04446158,22341.0,22340.0,0.17382064]
[1674251892593,0.04446158,22341.0,22340.0,0.47382064]
[1674251893099,0.04446158,22341.0,22340.0,0.17382064]
[1674251893606,0.03546158,22341.0,22340.0,0.17382064]
[1674251893833,0.04246158,22341.0,22340.0,0.17982064]
[1674251894846,0.04246158,22341.0,22340.0,0.006]
[1674251895095,0.48893339,22341.0,22340.0,0.006]
[1674251895598,0.48893339,22341.0,22337.0,0.6497826]
[1674251895599,0.53082673,22341.0,22337.0,0.6497826]
[1674251895849,0.76345582,22341.0,22338.0,0.21704952]
[1674251896096,0.58543339,22341.0,22340.0,0.006]
[1674251896362,0.65197673,22341.0,22337.0,0.6136442]
[1674251896617,0.31565,22340.0,22337.0,0.6206442]
[1674251896865,0.31565,22340.0,22337.0,0.6136442]
[1674251896866,0.46957927,22340.0,22337.0,0.6136442]
[1674251897127,0.46957927,22340.0,22337.0,0.3733882]
[1674251897625,0.46957927,22340.0,22337.0,0.1719622]
[1674251897899,0.46957927,22340.0,22337.0,0.1659622]
[1674251898139,0.47857927,22340.0,22337.0,0.1719622]
[1674251898737,0.47857927,22340.0,22339.0,0.99]
[1674251898936,0.46957927,22340.0,22339.0,0.99]
[1674251899186,0.47657927,22340.0,22339.0,0.99]
[1674251900442,0.46957927,22340.0,22339.0,0.99]
[1674251900692,0.55357927,22340.0,22339.0,0.991]
[1674251902672,0.084,22340.0,22339.0,0.991]
[1674251903439,0.084,22340.0,22339.0,1.291]
[1674251905472,0.084,22340.0,22339.0,0.991]
[1674251905730,0.54284525,22340.0,22339.0,0.991]
[1674251907003,0.85708125,22340.0,22339.0,0.991]
[1674251907250,0.86558125,22340.0,22339.0,0.991]
[1674251908807,0.78158125,22340.0,22339.0,0.99]
[1674251909044,0.87158125,22340.0,22339.0,0.98988083]
[1674251910342,1.02158125,22340.0,22339.0,0.98988083]
[1674251912055,0.86287108,22340.0,22339.0,0.98988083]
[1674251912818,0.77287108,22340.0,22339.0,0.98988083]
[1674251913038,0.86387108,22340.0,22339.0,0.98988083]
[1674251913300,1.38674423,22340.0,22339.0,0.98988083]
[1674251913555,1.29574423,22340.0,22339.0,0.98988083]
[1674251913810,1.7545359,22340.0,22339.0,0.98988083]
[1674251914063,1.91511076,22340.0,22339.0,0.98988083]
[1674251914323,1.41530915,22340.0,22339.0,0.98988083]
[1674251914575,1.06460915,22340.0,22339.0,0.98988083]
[1674251914830,1.15560915,22340.0,22339.0,0.98988083]
[1674251915107,1.06460915,22340.0,22339.0,0.98988083]
[1674251915338,1.15560915,22340.0,22339.0,0.98988083]
[1674251915596,1.06460915,22340.0,22339.0,0.98988083]
[1674251915874,1.15560915,22340.0,22339.0,0.98988083]
[1674251917277,1.45560915,22340.0,22339.0,0.98988083]
[1674251917568,1.56280082,22340.0,22339.0,0.98988083]
[1674251917854,1.15560915,22340.0,22339.0,0.98988083]
[1674251918105,1.38720915,22340.0,22339.0,0.98988083]
[1674251918865,1.80952773,22340.0,22339.0,0.98988083]
[1674251919646,1.80952773,22340.0,22339.0,1.88988083]
[1674251919893,1.80952773,22340.0,22339.0,0.56746083]
[1674251919894,1.9851194,22340.0,22339.0,0.56746083]
[1674251920182,0.70516207,22338.0,22336.0,0.0709]
[1674251920410,1.30370015,22337.0,22336.0,0.0709]
[1674251920913,1.45370015,22337.0,22336.0,0.0709]
[1674251921166,1.48970015,22337.0,22336.0,0.0709]
[1674251921688,1.58070015,22337.0,22336.0,0.0709]
[1674251921939,1.97871356,22337.0,22336.0,0.0709]
[1674251922741,1.41721188,22337.0,22336.0,0.0709]
[1674251924214,0.96952488,22337.0,22336.0,0.0709]
[1674251928210,0.127,22337.0,22336.0,0.0709]
[1674251928471,0.127,22337.0,22336.0,0.24307389]
[1674251929243,0.127,22337.0,22336.0,0.54307389]
[1674251929494,0.127,22337.0,22336.0,0.0709]
[1674251929739,0.277,22337.0,22336.0,0.0709]
[1674251931463,0.61689932,22337.0,22336.0,0.0709]
[1674251931717,1.07803217,22337.0,22336.0,0.0709]
[1674251931964,0.93168032,22337.0,22336.0,0.0709]
[1674251933491,0.591781,22337.0,22336.0,0.0709]
[1674251933770,1.04625415,22337.0,22336.0,0.0709]
[1674251934020,1.41843138,22337.0,22336.0,0.0709]
[1674251934776,1.04625415,22337.0,22336.0,0.0709]
[1674251935031,1.39253647,22337.0,22336.0,0.0709]
[1674251935288,1.86372259,22337.0,22336.0,0.0709]
[1674251935544,1.46083647,22337.0,22336.0,0.0709]
[1674251935786,1.84451525,22337.0,22336.0,0.0709]
[1674251935998,1.49123543,22337.0,22336.0,0.0709]
[1674251936817,1.11455415,22337.0,22336.0,0.0709]
[1674251937072,1.07852387,22337.0,22336.0,0.0709]
[1674251937323,0.660081,22337.0,22336.0,0.0709]
[1674251937574,1.42221916,22337.0,22336.0,0.0709]
[1674251938089,0.15,22336.0,22331.0,0.15]
[1674251938346,0.8741025,22335.0,22330.0,0.48666602]
[1674251938598,0.61270368,22334.0,22330.0,0.07176602]
[1674251938855,0.472878,22333.0,22330.0,0.07176602]
[1674251939108,0.339006,22332.0,22330.0,0.07176602]
[1674251939362,0.0085,22332.0,22330.0,0.07176602]
[1674251939874,0.0445,22332.0,22330.0,0.07176602]
[1674251940633,0.0445,22332.0,22331.0,0.05902176]
[1674251940882,0.0445,22332.0,22327.0,0.15719312]
[1674251941134,0.71514715,22332.0,22329.0,0.05861512]
[1674251941381,0.53012472,22332.0,22329.0,0.05861512]
[1674251941641,0.53012472,22332.0,22330.0,0.15]
[1674251941889,0.51312472,22332.0,22330.0,0.15]
[1674251942099,0.51312472,22332.0,22329.0,0.05861512]
[1674251942100,0.52312472,22332.0,22329.0,0.05861512]
[1674251942317,0.51312472,22332.0,22329.0,0.35861512]
[1674251942560,0.53012472,22332.0,22329.0,0.05861512]
[1674251942815,0.51312472,22332.0,22329.0,0.05861512]
[1674251943605,0.22952243,22332.0,22326.0,1.43434529]
[1674251943845,0.7380197,22331.0,22326.0,1.43434529]
[1674251944119,0.18502243,22330.0,22326.0,0.73024529]
[1674251944382,0.18502243,22330.0,22327.0,0.20730707]
[1674251944629,0.55299727,22331.0,22327.0,0.20730707]
[1674251944874,0.036,22330.0,22327.0,0.20730707]
[1674251945130,0.045,22330.0,22327.0,0.20730707]
[1674251945374,0.036,22330.0,22327.0,0.20730707]
[1674251945617,0.036,22330.0,22326.0,0.28234829]
[1674251945864,0.22102243,22330.0,22326.0,0.28234829]
[1674251946121,0.40576605,22329.0,22327.0,0.3]
[1674251946381,0.40576605,22329.0,22326.0,0.20147926]
[1674251946628,0.40576605,22329.0,22327.0,0.3]
[1674251946870,0.40576605,22329.0,22326.0,0.20147926]
[1674251947115,0.44176605,22329.0,22327.0,0.3]
[1674251947360,0.44176605,22329.0,22326.0,0.20147926]
[1674251947616,0.44176605,22329.0,22326.0,0.0684]
[1674251947617,0.15,22328.0,22326.0,0.0684]
[1674251947861,0.44176605,22329.0,22325.0,0.57051524]
[1674251948125,0.63578848,22329.0,22328.0,0.46907126]
[1674251948382,0.40576605,22329.0,22328.0,0.46907126]
[1674251948641,0.44176605,22329.0,22328.0,0.46907126]
[1674251948894,0.45026605,22329.0,22328.0,0.46907126]
[1674251949140,0.46026605,22329.0,22328.0,0.46907126]
[1674251949378,0.45026605,22329.0,22328.0,0.46907126]
[1674251949868,0.75355005,22329.0,22328.0,0.46907126]
[1674251950156,0.76893705,22329.0,22328.0,0.46907126]
[1674251950415,0.85893705,22329.0,22328.0,0.46907126]
[1674251950712,0.0445,22329.0,22328.0,0.46907126]
[1674251950932,0.1355,22329.0,22328.0,0.46907126]
[1674251951183,0.55728673,22329.0,22328.0,0.46907126]
[1674251953250,0.6280154,22329.0,22328.0,0.46907126]
[1674251953483,0.9434844,22329.0,22328.0,0.46907126]
[1674251953725,0.87275573,22329.0,22328.0,0.46907126]
[1674251954469,0.55728673,22329.0,22328.0,0.46907126]
[1674251954967,0.55674787,22329.0,22328.0,0.46907126]
[1674251956585,0.13496114,22329.0,22328.0,0.46907126]
[1674251957343,0.13496114,22329.0,22328.0,0.76907126]
[1674251957614,0.13496114,22329.0,22328.0,0.46907126]
[1674251957885,0.13496114,22329.0,22328.0,0.76907126]
[1674251958172,0.12646114,22329.0,22328.0,0.76907126]
[1674251958899,0.54827489,22329.0,22328.0,0.46907126]
[1674251959141,0.12646114,22329.0,22328.0,0.46907126]
[1674251959637,0.12646114,22329.0,22328.0,0.76907126]
[1674251960385,0.12646114,22329.0,22328.0,0.9818512]
[1674251961143,0.12646114,22329.0,22328.0,0.8318512]
[1674251962384,0.11646114,22329.0,22328.0,0.8318512]
[1674251963671,0.31312968,22329.0,22328.0,0.46907126]
[1674251963916,0.8926693,22329.0,22328.0,0.46907126]
[1674251964171,0.88102319,22329.0,22328.0,0.46907126]
[1674251964688,0.44320514,22329.0,22328.0,0.46907126]
[1674251964944,0.89767829,22329.0,22328.0,0.46907126]
[1674251965203,1.04767829,22329.0,22328.0,0.46907126]
[1674251965447,1.33225162,22329.0,22328.0,0.46907126]
[1674251965693,1.70110447,22329.0,22328.0,0.46907126]
[1674251966196,0.96205799,22329.0,22328.0,0.46907126]
[1674251966966,1.18377829,22329.0,22328.0,0.46907126]
[1674251967912,2.18678584,22329.0,22328.0,0.46907126]
[1674251968147,1.19996996,22329.0,22328.0,0.46907126]
[1674251968388,1.09277829,22329.0,22328.0,0.46907126]
[1674251968645,1.48872532,22329.0,22328.0,0.46907126]
[1674251969110,1.57972532,22329.0,22328.0,0.46907126]
[1674251969355,1.48872532,22329.0,22328.0,0.46907126]
[1674251969601,1.57972532,22329.0,22328.0,0.46907126]
[1674251971140,1.18377829,22329.0,22328.0,0.46907126]
[1674251971383,1.53548315,22329.0,22328.0,0.46907126]
[1674251972121,1.44448315,22329.0,22328.0,0.46907126]
[1674251972367,1.53548315,22329.0,22328.0,0.46907126]
[1674251973613,1.18377829,22329.0,22328.0,0.46907126]
[1674251974117,1.43244339,22329.0,22328.0,0.46907126]
[1674251975609,1.18377829,22329.0,22328.0,0.46907126]
[1674251976121,2.18681863,22329.0,22328.0,0.46907126]
[1674251976383,2.18681863,22329.0,22322.0,0.06683694]
[1674251976384,2.48681863,22329.0,22322.0,0.0075378]
[1674251976637,0.0684,22325.0,22322.0,0.0075378]
[1674251976887,0.51077443,22324.0,22322.0,0.0075378]
[1674251977147,0.465973,22323.0,22322.0,0.0075378]
[1674251977398,0.72739543,22323.0,22322.0,0.0075378]
[1674251977645,0.72739543,22323.0,22316.0,0.5072]
[1674251977646,0.15,22322.0,22316.0,0.33282546]
[1674251977890,0.50682543,22321.0,22315.0,0.45540319]
[1674251978146,0.64813343,22320.0,22316.0,0.15]
[1674251978400,0.18502243,22319.0,22315.0,0.45540319]
[1674251978659,0.18502243,22318.0,22315.0,0.45540319]
[1674251978909,0.18502243,22318.0,22315.0,0.00728919]
[1674251979171,0.18502243,22318.0,22315.0,0.00228919]
[1674251979420,0.461854,22317.0,22315.0,0.00228919]
[1674251979680,0.334321,22316.0,22315.0,0.00228919]
[1674251979955,0.1945,22317.0,22315.0,0.00228919]
[1674251980205,0.70647749,22316.0,22315.0,0.00228919]
[1674251980460,0.74203484,22316.0,22315.0,0.00228919]
[1674251980712,0.45770908,22316.0,22315.0,0.00228919]
[1674251980962,0.49370908,22316.0,22315.0,0.00228919]
[1674251981218,0.49376908,22316.0,22315.0,0.00228919]
[1674251981466,0.47410712,22316.0,22315.0,0.00228919]
[1674251981723,0.81024612,22316.0,22315.0,0.00228919]
[1674251981976,0.56510712,22316.0,22315.0,0.00228919]
[1674251982223,0.47410712,22316.0,22315.0,0.00228919]
[1674251982476,0.56510712,22316.0,22315.0,0.00228919]
[1674251982726,0.79058812,22316.0,22315.0,0.00228919]
[1674251982984,0.88465812,22316.0,22315.0,0.00228919]
[1674251983478,0.54097699,22315.0,22311.0,0.44863078]
[1674251983734,0.57599942,22315.0,22312.0,0.15]
[1674251983990,0.39097699,22315.0,22312.0,0.15]
[1674251984245,0.39529448,22315.0,22312.0,0.97820858]
[1674251984504,0.43129448,22315.0,22313.0,0.009057]
[1674251984759,0.43129448,22315.0,22312.0,0.97820858]
[1674251985033,0.43129448,22315.0,22312.0,0.53002958]
[1674251985289,0.39387608,22314.0,22312.0,0.0684]
[1674251985549,0.39387608,22314.0,22311.0,0.00042778]
[1674251985806,0.1585,22313.0,22311.0,0.00042778]
[1674251986425,0.0445,22313.0,22311.0,0.00042778]
[1674251986600,0.0445,22313.0,22311.0,0.1618181]
[1674251986841,0.0445,22313.0,22311.0,0.6100191]
[1674251987098,0.125,22313.0,22312.0,0.309055]
[1674251987346,0.125,22313.0,22312.0,0.02140167]
[1674251987595,0.125,22313.0,22312.0,0.309055]
[1674251987842,0.036,22313.0,22312.0,0.309055]
[1674251988090,0.126,22313.0,22312.0,0.309055]
[1674251988592,0.56480822,22313.0,22311.0,0.00042778]
[1674251989100,0.56486822,22313.0,22311.0,0.00042778]
[1674251989353,0.47486822,22313.0,22311.0,0.00042778]
[1674251989619,0.56386822,22313.0,22311.0,0.30042778]
[1674251989877,0.56386822,22313.0,22312.0,0.009059]
[1674251989878,0.12506,22313.0,22312.0,0.009059]
[1674251990135,0.12506,22313.0,22312.0,0.01498783]
[1674251990890,0.03606,22313.0,22312.0,0.23338783]
[1674251991145,0.03606,22313.0,22312.0,0.304059]
[1674251991146,0.12606,22313.0,22312.0,0.304059]
[1674251991399,0.37527073,22314.0,22312.0,0.36523273]
[1674251991615,0.036,22313.0,22312.0,0.36117373]
[1674251991867,0.036,22313.0,22312.0,0.80935473]
[1674251992084,0.61210063,22316.0,22313.0,0.2320499]
[1674251993280,0.44522063,22316.0,22313.0,0.2320499]
[1674251993528,0.44522063,22316.0,22314.0,0.448149]
[1674251994266,0.49022063,22316.0,22313.0,0.2390499]
[1674251994531,0.44598864,22315.0,22313.0,0.2320499]
[1674251994773,0.44598864,22315.0,22313.0,0.6802159]
[1674251995539,0.48198864,22315.0,22313.0,0.6802159]
[1674251995797,0.54198864,22315.0,22313.0,0.6802159]
[1674251996048,0.55098864,22315.0,22313.0,0.6872159]
[1674251996818,0.55098864,22315.0,22313.0,0.59205645]
[1674251997614,0.55098864,22315.0,22313.0,0.455166]
[1674251997855,0.55098864,22315.0,22313.0,0.007]
[1674251998617,0.105,22315.0,22313.0,0.57351312]
[1674251998883,0.105,22315.0,22314.0,0.1977333]
[1674251999147,0.105,22315.0,22314.0,0.4977333]
[1674251999402,0.105,22315.0,22314.0,0.6477333]
[1674251999649,0.105,22315.0,22314.0,0.7955333]
[1674252000468,0.096,22315.0,22314.0,1.2436823]
[1674252000682,0.105,22315.0,22314.0,1.2506823]
[1674252002475,0.105,22315.0,22314.0,1.189749]
[1674252002736,0.06683978,22315.0,22314.0,1.189749]
[1674252002992,0.10283978,22315.0,22314.0,1.189749]
[1674252004023,0.10283978,22315.0,22314.0,1.66588546]
[1674252004024,0.04883493,22315.0,22314.0,1.66588546]
[1674252004270,0.00994156,22324.0,22318.0,0.448058]
[1674252004552,0.00994156,22324.0,22319.0,0.896064]
[1674252004803,0.00994156,22324.0,22319.0,1.196064]
[1674252005612,0.00994156,22324.0,22323.0,0.1368]
[1674252005855,1.14729191,22327.0,22323.0,0.40320713]
[1674252006138,1.14729191,22327.0,22324.0,0.3684]
[1674252006411,1.14729191,22327.0,22324.0,0.814337]
[1674252006681,0.70054215,22327.0,22324.0,0.814337]
[1674252007127,0.70054215,22327.0,22326.0,0.0682]
[1674252007389,0.70054215,22327.0,22326.0,1.032216]
[1674252008176,0.70054215,22327.0,22326.0,1.292016]
[1674252008444,0.70054215,22327.0,22326.0,1.592016]
[1674252008698,0.70054215,22327.0,22326.0,1.685016]
[1674252008950,0.70054215,22327.0,22326.0,1.592016]
[1674252009213,0.69814215,22327.0,22326.0,1.60717083]
[1674252010285,0.69814215,22327.0,22326.0,1.43977083]
[1674252010286,0.88316458,22327.0,22326.0,1.43977083]
[1674252010556,0.88316458,22327.0,22326.0,1.093016]
[1674252010839,0.69814215,22327.0,22326.0,1.2405261]
[1674252011088,0.69814215,22327.0,22326.0,1.1485261]
[1674252011341,0.69814215,22327.0,22326.0,1.2405261]
[1674252013197,0.69814215,22327.0,22326.0,1.2335261]
[1674252013198,0.69914215,22327.0,22326.0,1.2335261]
[1674252013507,0.69814215,22327.0,22326.0,1.0799261]
[1674252013756,0.73514215,22327.0,22326.0,1.1649261]
[1674252014041,0.73414215,22327.0,22326.0,1.0799261]
[1674252014303,0.73514215,22327.0,22326.0,1.1649261]
[1674252014562,0.73414215,22327.0,22326.0,1.3799261]
[1674252014837,0.26611788,22327.0,22326.0,1.4649261]
[1674252015343,0.26611788,22327.0,22326.0,1.249016]
[1674252015607,0.26611788,22327.0,22326.0,1.385716]
[1674252016377,0.26611788,22327.0,22326.0,1.380716]
[1674252016626,0.26611788,22327.0,22326.0,1.60838813]
[1674252017148,0.26611788,22327.0,22326.0,1.380716]
[1674252018184,0.26611788,22327.0,22326.0,1.73702089]
[1674252018438,0.26611788,22327.0,22326.0,0.90824869]
[1674252018719,0.45114031,22327.0,22326.0,0.90824869]
[1674252018949,0.26611788,22327.0,22326.0,0.90824869]
[1674252019197,0.26611788,22327.0,22326.0,1.05824869]
[1674252019727,0.26611788,22327.0,22326.0,1.35824869]
[1674252022012,0.26611788,22327.0,22326.0,1.35554221]
[1674252024019,0.26611788,22327.0,22326.0,1.20593577]
[1674252024497,0.26611788,22327.0,22326.0,1.45689363]
[1674252025253,0.02460488,22327.0,22326.0,1.32109253]
[1674252025507,0.8640259,22335.0,22327.0,0.15922327]
[1674252025776,0.44570719,22334.0,22329.0,1.41182]
[1674252026039,0.44570719,22334.0,22331.0,0.147]
[1674252026304,0.44570719,22334.0,22332.0,0.895574]
[1674252026550,0.514,22335.0,22333.0,0.3]
[1674252026810,0.37489074,22336.0,22334.0,0.447747]
[1674252027342,0.37489074,22336.0,22335.0,0.3]
[1674252027634,0.38339074,22336.0,22335.0,0.3]
[1674252028388,0.38339074,22336.0,22334.0,0.447747]
[1674252028627,0.0085,22335.0,22334.0,0.447747]
[1674252028881,0.37489074,22336.0,22335.0,0.3]
[1674252029143,0.01170155,22336.0,22335.0,0.747727]
[1674252029390,0.01170155,22336.0,22335.0,0.99456587]
[1674252029680,0.04770155,22336.0,22335.0,0.99456587]
[1674252031226,0.04770155,22336.0,22335.0,0.540727]
[1674252031478,0.04770155,22336.0,22335.0,0.447727]
[1674252031728,0.04770155,22336.0,22335.0,0.540727]
[1674252032280,0.04770155,22336.0,22335.0,0.75286288]
[1674252032512,0.04770155,22336.0,22335.0,1.05286288]
[1674252032729,0.04770155,22336.0,22335.0,0.95986288]
[1674252032978,0.04770155,22336.0,22335.0,1.05386288]
[1674252034714,0.19770155,22336.0,22335.0,1.05386288]
[1674252034973,0.04770155,22336.0,22335.0,1.05386288]
[1674252035225,0.04770155,22336.0,22335.0,0.910127]
[1674252035480,0.04770155,22336.0,22335.0,1.12562973]
[1674252035728,0.04770155,22336.0,22335.0,1.060127]
[1674252036734,0.04770155,22336.0,22335.0,1.29050137]
[1674252036985,0.04770155,22336.0,22335.0,1.05381004]
[1674252037523,0.04770155,22336.0,22335.0,0.85045422]
[1674252038033,0.011729,22338.0,22335.0,0.91885422]
[1674252038297,0.011729,22338.0,22337.0,0.0683]
[1674252038560,0.011729,22338.0,22337.0,1.113674]
[1674252038808,0.011729,22338.0,22337.0,1.413674]
[1674252039321,0.011729,22338.0,22337.0,0.895374]
[1674252039573,0.011729,22338.0,22337.0,1.12403003]
[1674252040590,0.011729,22338.0,22337.0,1.42403003]
[1674252041102,0.011729,22338.0,22337.0,1.56023003]
[1674252042349,0.011729,22338.0,22337.0,1.331574]
[1674252042850,0.011729,22338.0,22337.0,1.399974]
[1674252043349,0.011729,22338.0,22337.0,1.67848298]
[1674252043867,0.011729,22338.0,22337.0,1.31008298]
[1674252044119,0.059269,22338.0,22337.0,1.31008298]
[1674252044635,0.059269,22338.0,22337.0,1.31014298]
[1674252045148,0.011729,22338.0,22337.0,1.31014298]
[1674252046421,0.011729,22338.0,22337.0,1.61014298]
[1674252047796,0.011729,22338.0,22337.0,1.31014298]
[1674252048370,0.011729,22338.0,22337.0,1.61014298]
[1674252048614,0.011729,22338.0,22337.0,1.38695243]
[1674252050644,0.011729,22338.0,22337.0,1.38689243]
[1674252052698,0.011729,22338.0,22337.0,1.53689243]
[1674252054226,0.011729,22338.0,22337.0,1.38689243]
[1674252057052,0.059269,22338.0,22337.0,1.08689243]
[1674252057815,0.059269,22338.0,22337.0,0.80838345]
[1674252058062,0.059269,22338.0,22337.0,0.36069645]
[1674252058063,0.58390752,22338.0,22337.0,0.36069645]
[1674252058307,0.81798136,22338.0,22337.0,0.36069645]
[1674252059820,0.53252536,22338.0,22337.0,0.1362]
[1674252060334,0.84863136,22338.0,22337.0,0.1362]
[1674252060587,0.15,22337.0,22335.0,0.59178836]
[1674252060839,0.31678,22336.0,22335.0,0.14406136]
[1674252061100,0.56988062,22337.0,22335.0,0.14406136]
[1674252061355,0.56988062,22337.0,22335.0,6e-05]
[1674252061866,0.64506448,22337.0,22335.0,6e-05]
[1674252062381,0.56988062,22337.0,22335.0,6e-05]
[1674252062639,0.33139449,22336.0,22335.0,0.09406]
[1674252062886,0.33139449,22336.0,22335.0,6e-05]
[1674252063149,0.33139449,22336.0,22335.0,0.09406]
[1674252063661,0.33139449,22336.0,22335.0,0.094]
[1674252063949,0.33139449,22336.0,22334.0,0.66072558]
[1674252064211,0.33139449,22336.0,22335.0,0.094]
[1674252064451,0.32789449,22336.0,22335.0,0.094]
[1674252065446,0.32789449,22336.0,22334.0,0.66072558]
[1674252065927,0.32789449,22336.0,22335.0,0.094]
[1674252066433,0.32789449,22336.0,22334.0,0.66072558]
[1674252066680,0.32789449,22336.0,22334.0,0.75372558]
[1674252066933,0.170229,22338.0,22335.0,0.57790466]
[1674252066934,0.37258246,22338.0,22335.0,0.57790466]
[1674252067185,0.37258246,22338.0,22336.0,0.447707]
[1674252067455,0.46029376,22337.0,22335.0,1.02562166]
[1674252067707,0.46820013,22338.0,22336.0,0.447697]
[1674252067963,0.46820013,22338.0,22337.0,0.3]
[1674252068466,0.46820013,22338.0,22336.0,0.447697]
[1674252068715,0.45213109,22337.0,22336.0,0.447697]
[1674252068969,0.45213109,22337.0,22336.0,0.485697]
[1674252069225,0.45213109,22337.0,22336.0,0.447697]
[1674252069772,0.020229,22338.0,22336.0,0.747697]
[1674252070040,0.020229,22338.0,22337.0,0.3]
[1674252070041,0.011729,22338.0,22337.0,0.3]
[1674252070307,0.011729,22338.0,22337.0,0.747687]
[1674252070586,0.011729,22338.0,22337.0,0.70236403]
[1674252070839,0.011729,22338.0,22336.0,6e-05]
[1674252071170,0.40888025,22338.0,22337.0,0.083]
[1674252072362,0.011729,22338.0,22337.0,0.32036345]
[1674252072630,0.011729,22338.0,22337.0,0.62036345]
[1674252072880,0.011729,22338.0,22337.0,0.32036345]
[1674252073139,0.059269,22338.0,22337.0,0.083]
[1674252073385,0.52858206,22338.0,22337.0,0.083]
[1674252073633,0.82008606,22338.0,22337.0,0.083]
[1674252074614,0.97008606,22338.0,22337.0,0.083]
[1674252075386,0.509273,22338.0,22337.0,0.083]
[1674252075633,0.96006618,22338.0,22337.0,0.08306]
[1674252075877,0.69875531,22338.0,22337.0,0.08306]
[1674252076646,0.170229,22338.0,22337.0,0.08306]
[1674252077149,0.52658495,22338.0,22337.0,0.08306]
[1674252078750,0.170229,22338.0,22337.0,0.08306]
[1674252078933,0.92760611,22338.0,22337.0,0.08306]
[1674252079448,0.477611,22338.0,22337.0,0.08306]
[1674252079697,0.618798,22338.0,22337.0,0.08306]
[1674252080188,0.755098,22338.0,22337.0,0.08306]
[1674252080681,0.755098,22338.0,22337.0,0.083]
[1674252080682,1.75749328,22338.0,22337.0,0.083]
[1674252080948,1.75749328,22338.0,22333.0,6e-05]
[1674252081207,0.0679,22334.0,22333.0,6e-05]
[1674252081457,0.379349,22334.0,22333.0,6e-05]
[1674252081972,0.09902,22334.0,22333.0,6e-05]
[1674252082206,0.463885,22334.0,22333.0,6e-05]
[1674252082454,0.490885,22334.0,22333.0,0.00606]
[1674252083967,0.95155095,22334.0,22333.0,0.00606]
[1674252084206,0.489385,22334.0,22333.0,0.00606]
[1674252084462,0.464385,22334.0,22333.0,0.00606]
[1674252084706,0.601185,22334.0,22333.0,0.00606]
[1674252085742,1.05565815,22334.0,22333.0,0.006]
[1674252085975,1.27265887,22334.0,22333.0,0.006]
[1674252086282,0.15,22333.0,22327.0,0.05355399]
[1674252086494,0.0679,22330.0,22327.0,0.05355399]
[1674252086744,0.324792,22329.0,22327.0,0.05355399]
[1674252087015,0.309167,22328.0,22327.0,0.05355399]
[1674252087249,0.0085,22328.0,22327.0,0.77179873]
[1674252087534,0.0085,22328.0,22327.0,1.13474702]
[1674252087754,0.0085,22329.0,22327.0,1.08174702]
[1674252088007,0.0018,22329.0,22328.0,0.25926665]
[1674252088253,0.0679,22330.0,22328.0,0.25926665]
[1674252088739,0.44117346,22330.0,22328.0,0.25926665]
[1674252088988,0.15,22329.0,22328.0,0.25926665]
[1674252089229,0.153,22329.0,22328.0,0.053]
[1674252089486,0.50723057,22329.0,22328.0,0.053]
[1674252089732,0.50423057,22329.0,22327.0,0.49643399]
[1674252090483,0.41250429,22328.0,22327.0,0.04855399]
[1674252090729,0.74363729,22328.0,22327.0,0.04855399]
[1674252091253,0.72187929,22328.0,22327.0,0.04855399]
[1674252091496,0.72187929,22328.0,22327.0,0.10255399]
[1674252091741,0.72187929,22328.0,22327.0,0.04855399]
[1674252091996,0.75987929,22328.0,22327.0,0.05355399]
[1674252092241,0.75987929,22328.0,22327.0,0.04855399]
[1674252092242,0.74683729,22328.0,22327.0,0.04855399]
[1674252092488,0.78483729,22328.0,22327.0,0.05355399]
[1674252092994,0.46301692,22328.0,22327.0,0.05355399]
[1674252093237,0.53111692,22328.0,22327.0,0.05355399]
[1674252093491,0.402433,22328.0,22327.0,0.04855399]
[1674252093759,0.93581841,22328.0,22327.0,0.05355399]
[1674252094000,0.89781841,22328.0,22327.0,0.04855399]
[1674252094244,0.93581841,22328.0,22327.0,0.05355399]
[1674252094997,0.60998541,22328.0,22327.0,0.05355399]
[1674252095794,0.0465,22328.0,22327.0,0.05355399]
[1674252096046,0.038,22328.0,22327.0,0.27788081]
[1674252096323,0.038,22328.0,22327.0,0.57788081]
[1674252096529,0.038,22328.0,22327.0,0.88494281]